bitfinex-derivatives/quotes_SOLF0:USTF0_20220108
["timestamp","ask_amount","ask_price","bid_price","bid_amount"]
[1641663820973,27.66479,137.87,137.76,27.66479]
[1641663821372,27.66479,137.87,137.77,1.814]
[1641663821770,27.66479,137.87,137.76,40.73205188]
[1641663821971,27.66479,137.87,137.76,29.47779]
[1641663822171,27.66479,137.87,137.76,27.66479]
[1641663822371,27.66479,137.87,137.75,1.814]
[1641663822571,27.66479,137.87,137.74,27.66479]
[1641663822773,33.99779,137.87,137.74,27.66479]
[1641663823172,31.66479,137.84,137.74,27.66479]
[1641663823372,4.0,137.82,137.71,68.9354]
[1641663823573,7.25979164,137.81,137.7,27.66479]
[1641663823773,5.80615948,137.79,137.68,68.1581]
[1641663823974,5.80615948,137.79,137.67,84.82438284]
[1641663824775,5.80615948,137.79,137.67,69.7244]
[1641663825174,27.66479,137.78,137.67,97.38919]
[1641663825773,7.26163677,137.77,137.65,29.47979]
[1641663825974,7.26163677,137.77,137.64,1.815]
[1641663826173,13.07066421,137.75,137.63,1.815]
[1641663826373,20.28966421,137.75,137.62,15.09998284]
[1641663826575,5.80890936,137.72,137.62,15.09998284]
[1641663826774,4.0,137.71,137.6,70.6533]
[1641663826975,5.81097224,137.68,137.59,15.09998284]
[1641663827175,39.23376224,137.68,137.6,27.66479]
[1641663827375,39.23376224,137.68,137.59,15.09998284]
[1641663827575,41.04976224,137.68,137.59,15.09998284]
[1641663827775,4.0,137.67,137.59,15.09998284]
[1641663827976,7.26929088,137.63,137.54,16.91598284]
[1641663828177,7.26929088,137.63,137.54,15.09998284]
[1641663828374,7.26338795,137.65,137.54,15.09998284]
[1641663828576,1.817,137.65,137.54,19.09998284]
[1641663828777,1.817,137.65,137.54,15.09998284]
[1641663828976,27.66479,137.68,137.55,1.816]
[1641663829176,27.66479,137.68,137.59,27.66479]
[1641663829577,1.816,137.72,137.59,31.66479]
[1641663829778,5.08093739,137.73,137.62,4.0]
[1641663830077,5.08093739,137.73,137.63,7.26190044]
[1641663830681,1.816,137.74,137.63,7.26190044]
[1641663830878,7.219,137.75,137.63,9.07690044]
[1641663831178,7.219,137.75,137.66,27.66479]
[1641663832781,7.219,137.75,137.67,4.0]
[1641663832983,1.815,137.81,137.7,4.0]
[1641663833282,5.08093739,137.82,137.73,27.66479]
[1641663833682,27.66479,137.83,137.73,27.66479]
[1641663833683,32.74572739,137.83,137.73,27.66479]
[1641663834082,5.08093739,137.83,137.73,27.66479]
[1641663834282,5.08093739,137.83,137.73,34.9208942]
[1641663834684,5.80394084,137.84,137.73,34.9208942]
[1641663834983,5.80394084,137.84,137.73,27.66479]
[1641663835584,13.06267855,137.84,137.73,27.66479]
[1641663835785,5.80467666,137.82,137.73,27.66479]
[1641663835984,5.80467666,137.82,137.71,27.66479]
[1641663836184,5.80467666,137.82,137.68,1.814]
[1641663836384,5.80634909,137.79,137.67,71.2209]
[1641663836585,7.26190044,137.78,137.67,71.2209]
[1641663836786,5.80718766,137.77,137.64,15.09998284]
[1641663836986,5.815,137.76,137.64,15.09998284]
[1641663837185,40.7427453,137.76,137.64,42.76477284]
[1641663837386,29.47979,137.76,137.64,42.76477284]
[1641663837586,33.47979,137.76,137.64,27.66479]
[1641663837885,5.80796701,137.75,137.63,7.26190044]
[1641663838087,5.80796701,137.75,137.62,27.66479]
[1641663839087,5.80796701,137.75,137.62,55.32958]
[1641663839488,36.74300906,137.76,137.64,4.0]
[1641663839688,27.66479,137.78,137.64,14.0111095]
[1641663839891,27.66479,137.78,137.65,1.815]
[1641663840490,27.66479,137.78,137.67,4.0]
[1641663840692,27.66479,137.78,137.68,1.815]
[1641663840892,27.66479,137.78,137.63,7.26163677]
[1641663841090,27.66479,137.78,137.66,27.66479]
[1641663841492,27.66479,137.78,137.66,31.66479]
[1641663841893,27.66479,137.78,137.66,27.66479]
[1641663842093,27.66479,137.78,137.69,4.0]
[1641663842294,5.08093739,137.81,137.7,7.25794745]
[1641663842594,5.08093739,137.81,137.73,7.2561042]
[1641663842794,5.08093739,137.81,137.75,4.0]
[1641663842995,5.08093739,137.81,137.74,4.0]
[1641663843197,5.08093739,137.84,137.79,27.66479]
[1641663843398,5.08093739,137.84,137.79,34.82579]
[1641663843796,5.08093739,137.84,137.79,7.161]
[1641663844097,5.80472938,137.82,137.79,7.161]
[1641663844296,5.80472938,137.82,137.72,72.48013075]
[1641663844496,5.80472938,137.82,137.72,7.25663075]
[1641663845297,5.80472938,137.82,137.75,27.66479]
[1641663845799,6.96374057,137.86,137.75,27.66479]
[1641663846099,5.08093739,137.87,137.77,7.25426188]
[1641663847097,7.2561042,137.89,137.76,1.813]
[1641663847297,5.80260015,137.87,137.75,27.66479]
[1641663848098,5.08093739,137.89,137.76,7.25478816]
[1641663848300,5.08093739,137.89,137.77,1.813]
[1641663848702,4.0,137.86,137.77,1.813]
[1641663848901,4.0,137.87,137.76,7.25478816]
[1641663849299,32.74572739,137.9,137.79,27.66479]
[1641663849499,32.74572739,137.9,137.79,34.01379]
[1641663850003,8.251e-05,137.92,137.79,34.01379]
[1641663850199,22.78202117,138.0,137.91,4.0]
[1641663850400,22.78202117,138.0,137.93,4.0]
[1641663850600,6.29302117,138.0,137.94,1.812]
[1641663850801,0.61302117,138.0,137.93,1.811]
[1641663851000,104.60576282,138.04,137.92,1.812]
[1641663851200,33.45833533,138.09,137.99,27.66479]
[1641663851401,5.79561431,138.04,137.99,27.66479]
[1641663851602,4.0,138.03,137.97,27.66479]
[1641663851800,4.0,138.01,137.97,27.66479]
[1641663851999,9.79561431,138.04,137.97,27.66479]
[1641663852199,4.0,138.02,137.97,27.66479]
[1641663852400,4.0,138.03,137.91,7.24716455]
[1641663853301,27.66479,138.03,137.95,27.66479]
[1641663853501,5.79561431,138.04,137.95,27.66479]
[1641663854103,27.66479,138.09,137.95,27.66479]
[1641663854306,5.79317269,138.1,137.95,27.66479]
[1641663854604,20.59657732,138.08,137.96,1.811]
[1641663854806,20.59657732,138.08,137.95,27.66479]
[1641663855009,20.59657732,138.09,137.96,1.811]
[1641663855204,20.59657732,138.09,138.03,27.66479]
[1641663855705,20.59657732,138.12,138.03,27.66479]
[1641663856005,4.0,138.09,138.03,27.66479]
[1641663856606,4.0,138.09,138.01,27.66479]
[1641663857006,4.0,138.08,138.01,27.66479]
[1641663857304,4.0,138.07,137.92,1.811]
[1641663857509,4.0,137.98,137.89,1.811]
[1641663857707,7.25110579,138.04,137.89,1.811]
[1641663857708,4.0,137.93,137.89,1.811]
[1641663857910,5.79880419,137.96,137.87,7.25189456]
[1641663857911,4.0,137.9,137.87,7.25189456]
[1641663858308,4.0,137.89,137.87,9.456e-05]
[1641663858509,4.0,137.88,137.73,1.813]
[1641663858709,5.80262379,137.87,137.73,1.813]
[1641663858910,4.0,137.83,137.72,65.0674]
[1641663859111,4.0,137.82,137.68,1.814]
[1641663859310,27.66479,137.81,137.73,27.66479]
[1641663859510,4.0,137.77,137.73,7.25873771]
[1641663859710,7.61976676,137.8,137.66,7.26216412]
[1641663859912,4.0,137.71,137.59,1.815]
[1641663860112,1.816,137.7,137.69,2.93024601]
[1641663860315,5.81061167,137.68,137.64,11.18261862]
[1641663860515,1.816,137.67,137.64,11.18261862]
[1641663860811,8.179,137.68,137.64,11.18261862]
[1641663861417,8.179,137.68,137.62,34.9290643]
[1641663861814,5.24875399,137.68,137.67,7.26163677]
[1641663862616,5.815,137.84,137.67,7.26163677]
[1641663862816,4.0,137.81,137.68,1.814]
[1641663863016,4.0,137.81,137.67,9.07563677]
[1641663863316,31.66479,137.81,137.7,27.66479]
[1641663864816,27.66479,137.81,137.7,27.66479]
[1641663865016,27.66479,137.81,137.73,7.25847427]
[1641663865216,31.66479,137.83,137.74,27.66479]
[1641663865816,4.0,137.83,137.74,27.66479]
[1641663866216,4.0,137.83,137.73,7.25847427]
[1641663866416,4.0,137.82,137.73,7.25847427]
[1641663866816,4.0,137.82,137.7,27.66479]
[1641663867018,5.80569227,137.8,137.7,27.66479]
[1641663867217,1.814,137.79,137.7,27.66479]
[1641663867420,11.62021627,137.79,137.7,27.66479]
[1641663867618,7.62021627,137.79,137.7,27.66479]
[1641663867818,7.62021627,137.79,137.69,7.2605823]
[1641663867819,5.80685821,137.77,137.69,7.2605823]
[1641663868018,9.80685821,137.77,137.69,7.2605823]
[1641663868218,4.0,137.76,137.69,7.2605823]
[1641663868418,5.80866991,137.73,137.65,7.26269155]
[1641663868621,4.0,137.71,137.61,7.26480203]
[1641663868819,1.815,137.72,137.61,7.26480203]
[1641663868820,4.0,137.68,137.61,7.26480203]
[1641663869019,5.81122091,137.67,137.61,7.26480203]
[1641663869220,27.66479,137.64,137.57,34.93196779]
[1641663869418,4.0,137.63,137.57,7.26717779]
[1641663869820,4.0,137.61,137.5,30.89210671]
[1641663870019,4.0,137.59,137.51,7.27034789]
[1641663870220,4.0,137.57,137.51,7.27034789]
[1641663870420,9.81530232,137.57,137.51,7.27034789]
[1641663870620,4.0,137.55,137.47,7.27246282]
[1641663870823,9.81530232,137.57,137.47,7.27246282]
[1641663871022,5.81686317,137.54,137.49,7.2714052]
[1641663871223,1.817,137.61,137.53,55.32958]
[1641663871424,7.62996259,137.63,137.53,55.32958]
[1641663871826,1.817,137.63,137.56,7.26770595]
[1641663872023,5.81206143,137.65,137.56,7.26770595]
[1641663872423,5.81206143,137.65,137.54,7.26876249]
[1641663872624,5.81326134,137.62,137.53,55.32958]
[1641663872825,7.63026134,137.62,137.53,55.32958]
[1641663873425,4.0,137.57,137.49,7.2714052]
[1641663873625,9.81525283,137.57,137.49,7.2714052]
[1641663874026,5.81647096,137.55,137.49,7.2714052]
[1641663874427,9.81647096,137.55,137.49,7.2714052]
[1641663874625,5.817,137.56,137.45,7.27352075]
[1641663874825,9.81559485,137.57,137.45,7.27352075]
[1641663875026,4.0,137.56,137.45,7.27352075]
[1641663875226,4.0,137.55,137.46,27.66479]
[1641663875424,33.48279,137.56,137.46,27.66479]
[1641663875625,31.66479,137.56,137.46,27.66479]
[1641663875825,4.0,137.54,137.46,27.66479]
[1641663876126,4.0,137.48,137.3,4.0]
[1641663876326,25.81738536,137.52,137.3,4.0]
[1641663876327,5.81996777,137.46,137.36,40.46800209]
[1641663876728,5.82125314,137.43,137.36,40.46800209]
[1641663876928,5.82125314,137.43,137.35,7.27881501]
[1641663877127,5.81956036,137.47,137.39,4.0]
[1641663877327,4.0,137.52,137.42,7.27457898]
[1641663877527,5.81705924,137.53,137.45,7.27352075]
[1641663877728,9.81705924,137.53,137.45,7.27352075]
[1641663877927,5.81705924,137.53,137.45,7.27352075]
[1641663879229,5.81705924,137.53,137.46,27.66479]
[1641663879629,5.81705924,137.53,137.51,7.27008361]
[1641663879830,8.37287027,137.59,137.52,7.26876249]
[1641663880033,1.817,137.61,137.58,7.2663857]
[1641663880231,5.81151801,137.66,137.58,7.2663857]
[1641663880431,5.81151801,137.66,137.56,7.26744186]
[1641663880632,9.81151801,137.66,137.49,1.816]
[1641663880831,5.81305875,137.63,137.55,7.26823418]
[1641663881231,5.81305875,137.63,137.56,27.66479]
[1641663881433,5.81305875,137.63,137.59,7.26612171]
[1641663881732,10.0370208,137.74,137.61,7.26506593]
[1641663881934,1.816,137.75,137.65,7.26269155]
[1641663882131,5.80666021,137.78,137.69,7.2605823]
[1641663882531,4.0,137.78,137.67,29.0402207]
[1641663882731,4.0,137.78,137.7,7.26031873]
[1641663882732,9.80647855,137.78,137.7,7.26031873]
[1641663882931,4.0,137.75,137.67,7.26190044]
[1641663883232,27.66479,137.68,137.64,29.04760176]
[1641663883532,27.66479,137.68,137.54,31.66479]
[1641663883731,1.816,137.68,137.59,4.0]
[1641663883931,5.80981116,137.7,137.59,4.0]
[1641663884134,5.816,137.74,137.59,4.0]
[1641663884331,5.816,137.74,137.57,1.816]
[1641663884332,5.80977858,137.7,137.57,1.816]
[1641663884534,13.07590029,137.7,137.55,13.08212171]
[1641663884732,13.07590029,137.7,137.57,4.0]
[1641663884932,1.816,137.69,137.57,4.0]
[1641663885133,1.816,137.69,137.56,34.93011985]
[1641663885134,1.816,137.69,137.58,4.0]
[1641663885531,1.816,137.69,137.56,34.93011985]
[1641663885532,1.816,137.69,137.61,27.66479]
[1641663885733,5.80977858,137.7,137.61,27.66479]
[1641663885932,1.816,137.69,137.61,27.66479]
[1641663886332,7.26717779,137.68,137.56,27.66479]
[1641663886532,7.26876249,137.65,137.56,27.66479]
[1641663886733,5.81296207,137.63,137.56,27.66479]
[1641663887034,5.81296207,137.63,137.51,7.26823418]
[1641663887232,5.81296207,137.63,137.48,88.84237691]
[1641663887233,7.27034789,137.62,137.48,66.5743]
[1641663887433,36.75213789,137.62,137.51,27.66479]
[1641663887632,34.93513789,137.62,137.51,27.66479]
[1641663887834,5.81363626,137.61,137.51,27.66479]
[1641663888034,5.81363626,137.61,137.51,31.66479]
[1641663888234,34.93513789,137.62,137.51,31.66479]
[1641663888636,1.817,137.64,137.55,4.0]
[1641663888835,1.816,137.68,137.53,4.0]
[1641663889035,1.816,137.68,137.54,4.0]
[1641663889235,6.97247465,137.69,137.58,4.0]
[1641663889437,6.97247465,137.69,137.62,27.66479]
[1641663889637,43.29492566,137.72,137.62,27.66479]
[1641663889836,5.80939754,137.71,137.62,27.66479]
[1641663890934,43.29492566,137.72,137.62,27.66479]
[1641663890935,8.36480581,137.72,137.64,4.0]
[1641663891136,1.816,137.76,137.64,4.0]
[1641663891337,7.26321906,137.76,137.62,31.66479]
[1641663891540,7.26321906,137.76,137.65,27.66479]
[1641663891936,5.80766701,137.75,137.65,27.66479]
[1641663892338,5.80938717,137.71,137.65,27.66479]
[1641663893239,1.815,137.72,137.65,27.66479]
[1641663893441,5.80862223,137.73,137.65,27.66479]
[1641663893943,5.80602829,137.79,137.69,4.0]
[1641663894240,1.815,137.82,137.71,4.0]
[1641663894441,8.35759794,137.84,137.71,4.0]
[1641663894841,8.35759794,137.84,137.75,4.0]
[1641663895041,14.99852181,137.87,137.75,4.0]
[1641663895242,14.99852181,137.87,137.78,4.0]
[1641663895443,14.99852181,137.87,137.81,27.66479]
[1641663895845,27.66479,137.9,137.81,27.66479]
[1641663896143,5.80221073,137.88,137.81,27.66479]
[1641663896343,1.813,137.87,137.75,7.2561042]
[1641663896544,1.813,137.87,137.75,11.2561042]
[1641663896746,1.813,137.87,137.78,7.25452501]
[1641663897147,1.813,137.87,137.77,7.25505133]
[1641663897347,5.80221073,137.88,137.77,7.25505133]
[1641663897546,5.80221073,137.88,137.79,27.66479]
[1641663897746,9.80221073,137.88,137.79,27.66479]
[1641663897945,9.80221073,137.88,137.73,9.06989405]
[1641663897946,5.8035016,137.85,137.73,9.06989405]
[1641663898147,4.0,137.83,137.7,66.6214]
[1641663898448,5.80521939,137.81,137.7,79.80592181]
[1641663898646,5.80521939,137.81,137.7,22.25699608]
[1641663898846,1.814,137.83,137.72,11.25742071]
[1641663899047,1.814,137.85,137.71,4.0]
[1641663899247,6.96408794,137.86,137.75,7.2561042]
[1641663899447,6.96408794,137.86,137.77,27.66479]
[1641663901049,8.205,137.88,137.78,4.0]
[1641663901449,8.205,137.88,137.83,27.66479]
[1641663902549,8.205,137.88,137.8,1.813]
[1641663902749,4.0,137.85,137.77,27.66479]
[1641663903151,7.25873771,137.85,137.74,14.99852181]
[1641663903351,5.80513342,137.81,137.72,14.99852181]
[1641663903551,5.80513342,137.81,137.72,42.66331181]
[1641663903751,5.80564409,137.8,137.72,14.99852181]
[1641663903951,5.80696333,137.77,137.72,14.99852181]
[1641663904753,5.80696333,137.77,137.7,27.66479]
[1641663905352,7.26190044,137.79,137.7,27.66479]
[1641663906054,27.66479,137.84,137.7,27.66479]
[1641663906055,5.80396214,137.84,137.71,4.0]
[1641663906259,10.74,137.94,137.73,4.0]
[1641663906453,10.74,137.94,137.7,27.66479]
[1641663906454,1.814,137.87,137.82,7.2524205]
[1641663906654,14.99852181,137.91,137.79,4.0]
[1641663906854,18.4665239,137.94,137.81,4.0]
[1641663907053,18.4665239,137.94,137.87,4.0]
[1641663907253,18.1463239,137.94,137.91,4.0]
[1641663907456,1.1663239,137.94,137.93,7.24558925]
[1641663907656,15.08007506,138.11,137.93,66.57516925]
[1641663907854,15.08007506,138.11,137.96,4.0]
[1641663908056,44.4619551,138.19,138.03,4.0]
[1641663908354,44.4619551,138.19,138.05,4.0]
[1641663908554,65.04534893,138.19,138.13,4.0]
[1641663908755,20.58339383,138.19,138.11,4.0]
[1641663908955,20.58339383,138.19,138.13,7.23615181]
[1641663909154,100.21302,138.23,138.14,4.0]
[1641663909355,100.21302,138.23,138.16,7.2345813]
[1641663909556,100.21302,138.23,138.19,34.89753989]
[1641663909955,100.21302,138.23,138.19,38.89753989]
[1641663910159,100.21302,138.23,138.2,7.2322268]
[1641663910356,100.21302,138.23,138.21,4.0]
[1641663910656,100.21302,138.23,138.22,11.23065799]
[1641663911054,100.21302,138.23,138.22,15.23065799]
[1641663911656,100.21302,138.23,138.22,42.89544799]
[1641663912057,96.46202,138.23,138.22,42.89544799]
[1641663912256,84.43302,138.23,138.22,44.70344799]
[1641663912456,125.74249485,138.27,138.22,44.70344799]
[1641663912758,108.08419485,138.27,138.26,28.0]
[1641663912957,108.08419485,138.27,138.26,8.0]
[1641663913657,108.08419485,138.27,138.26,35.66479]
[1641663913858,100.20819485,138.27,138.26,55.66479]
[1641663914058,96.37819485,138.27,138.26,55.66479]
[1641663914257,83.89719485,138.27,138.26,55.66479]
[1641663914457,142.02575326,138.32,138.27,8.0]
[1641663914757,137.82275326,138.32,138.31,28.0]
[1641663915157,129.82275326,138.32,138.31,28.0]
[1641663915358,129.82275326,138.32,138.31,29.807]
[1641663915558,121.82275326,138.32,138.31,85.13658]
[1641663915758,113.82275326,138.32,138.31,85.13658]
[1641663916058,97.82275326,138.32,138.31,85.13658]
[1641663916258,89.82275326,138.32,138.31,85.13658]
[1641663916459,195.5473585,138.53,138.31,85.13658]
[1641663916660,195.5473585,138.53,138.36,4.0]
[1641663916860,20.0,138.52,138.33,4.0]
[1641663917163,5.77740919,138.48,138.27,1.806]
[1641663917460,20.0,138.44,138.26,11.22308498]
[1641663917659,5.77740919,138.48,138.29,27.66479]
[1641663917660,27.66479,138.39,138.29,27.66479]
[1641663918361,7.23091941,138.38,138.27,27.66479]
[1641663918561,7.23301146,138.34,138.16,1.807]
[1641663918761,7.23536647,138.3,138.15,28.93413866]
[1641663918961,1.808,138.29,138.11,1.808]
[1641663919161,5.78510275,138.29,138.14,4.0]
[1641663919361,1.808,138.28,138.2,4.0]
[1641663919563,7.23248834,138.35,138.27,55.32958]
[1641663919863,1.808,138.36,138.27,55.32958]
[1641663920263,1.808,138.36,138.27,27.66479]
[1641663920466,1.808,138.36,138.26,7.22908986]
[1641663920866,1.808,138.36,138.29,7.2277836]
[1641663921067,1.807,138.4,138.33,7.22569457]
[1641663921266,1.806,138.45,138.27,5.806]
[1641663921569,1.806,138.45,138.35,27.66479]
[1641663921867,1.806,138.46,138.33,27.66479]
[1641663922066,5.78033788,138.41,138.3,7.22726123]
[1641663922268,1.806,138.4,138.32,7.22621671]
[1641663922567,7.22830605,138.43,138.32,7.22621671]
[1641663922767,1.806,138.42,138.35,4.0]
[1641663922968,1.807,138.44,138.35,4.0]
[1641663923166,1.806,138.45,138.35,4.0]
[1641663923566,1.806,138.45,138.39,27.66479]
[1641663923766,1.806,138.5,138.39,31.66479]
[1641663923968,1.806,138.5,138.45,7.21943472]
[1641663924166,1.805,138.55,138.43,4.0]
[1641663924366,5.7739212,138.56,138.45,4.0]
[1641663924568,1.805,138.57,138.49,4.0]
[1641663924768,10.63309721,138.58,138.49,11.21709007]
[1641663924967,1.804,138.62,138.49,7.21709007]
[1641663925369,1.804,138.62,138.49,11.21709007]
[1641663925571,1.804,138.62,138.58,31.66479]
[1641663925867,4.86017926,138.63,138.57,4.0]
[1641663926067,12.07518648,138.69,138.56,1.803]
[1641663926267,12.07518648,138.69,138.55,27.66479]
[1641663926268,1.803,138.68,138.55,27.66479]
[1641663926467,1.803,138.68,138.56,7.21370604]
[1641663926668,1.803,138.68,138.57,7.21292556]
[1641663926868,4.86017926,138.69,138.59,7.21214525]
[1641663927069,4.86017926,138.69,138.56,7.21344586]
[1641663927270,1.803,138.71,138.65,7.20876586]
[1641663927470,1.802,138.78,138.65,15.60076586]
[1641663927671,27.66479,138.76,138.67,4.0]
[1641663927870,27.66479,138.76,138.66,27.66479]
[1641663928074,1.802,138.75,138.65,8.392]
[1641663928274,9.01388519,138.75,138.65,8.392]
[1641663928472,7.21266544,138.73,138.65,8.392]
[1641663928673,7.21500722,138.69,138.53,5.375]
[1641663928872,7.21761097,138.64,138.54,1.375]
[1641663929072,7.21761097,138.64,138.49,1.375]
[1641663929272,1.804,138.63,138.48,4.0]
[1641663929473,1.804,138.66,138.51,7.21604849]
[1641663929674,1.804,138.66,138.59,27.66479]
[1641663930173,1.804,138.66,138.5,4.0]
[1641663930374,7.21735051,138.64,138.5,4.0]
[1641663930575,1.804,138.63,138.47,5.375]
[1641663930774,12.98706678,138.65,138.5,7.21682965]
[1641663930973,7.22125939,138.57,138.45,7.21917413]
[1641663931173,9.02578089,138.56,138.44,1.375]
[1641663931374,1.804,138.56,138.44,1.375]
[1641663931575,1.805,138.57,138.46,31.66479]
[1641663931773,1.805,138.57,138.46,11.21891355]
[1641663931976,1.805,138.57,138.44,27.66479]
[1641663932573,7.57862097,138.57,138.44,27.66479]
[1641663932774,7.57862097,138.57,138.39,4.0]
[1641663932973,7.22282412,138.54,138.39,4.0]
[1641663933175,1.805,138.53,138.36,1.389]
[1641663933374,7.22438954,138.51,138.36,4.0]
[1641663933574,27.66479,138.47,138.39,27.66479]
[1641663933974,27.66479,138.47,138.37,27.66479]
[1641663934175,27.66479,138.47,138.38,4.0]
[1641663934376,1.806,138.46,138.41,7.22125939]
[1641663934576,20.0,138.64,138.37,27.66479]
[1641663934577,1.805,138.56,138.45,7.218653]
[1641663934977,1.804,138.58,138.43,7.22021661]
[1641663935177,1.804,138.58,138.43,11.22021661]
[1641663935476,1.804,138.58,138.44,7.21969533]
[1641663935778,27.66479,138.55,138.46,27.66479]
[1641663935977,1.804,138.54,138.44,27.66479]
[1641663936576,9.02682412,138.54,138.4,4.0]
[1641663937279,14.80151012,138.54,138.45,4.0]
[1641663937478,7.578686,138.54,138.46,4.0]
[1641663937678,27.66479,138.55,138.44,27.66479]
[1641663937878,1.805,138.54,138.46,4.0]
[1641663938078,6.66517926,138.54,138.46,4.0]
[1641663938280,6.66517926,138.54,138.44,27.66479]
[1641663938480,7.22543353,138.49,138.34,1.395]
[1641663938679,5.77747241,138.47,138.33,7.22543353]
[1641663938979,9.03273893,138.46,138.32,72.2823]
[1641663939382,5.77916964,138.43,138.29,4.0]
[1641663939581,27.66479,138.37,138.28,34.89283481]
[1641663939981,5.78250216,138.35,138.28,27.66479]
[1641663940482,1.807,138.36,138.28,27.66479]
[1641663940682,1.807,138.36,138.26,27.66479]
[1641663941685,27.66479,138.33,138.27,4.0]
[1641663941884,1.807,138.36,138.23,11.23091941]
[1641663942083,1.807,138.36,138.25,4.0]
[1641663942282,1.807,138.36,138.27,11.2285673]
[1641663942486,1.807,138.4,138.31,11.22647781]
[1641663942684,1.807,138.4,138.34,4.0]
[1641663942883,4.86017926,138.43,138.28,28.90591126]
[1641663942884,4.86017926,138.41,138.29,4.0]
[1641663943085,1.807,138.4,138.28,7.22804481]
[1641663943285,1.807,138.4,138.27,7.2285673]
[1641663943586,5.78138323,138.38,138.27,7.2285673]
[1641663943784,29.47179,138.37,138.25,7.22987384]
[1641663943984,35.25354104,138.37,138.25,7.22987384]
[1641663944184,35.25354104,138.37,138.25,11.22987384]
[1641663944584,35.25354104,138.37,138.22,116.88095541]
[1641663944784,35.25354104,138.37,138.29,4.0]
[1641663944987,27.66479,138.39,138.27,11.22882857]
[1641663945184,1.807,138.4,138.34,4.0]
[1641663945385,1.807,138.4,138.32,4.0]
[1641663945586,6.66617926,138.41,138.33,4.0]
[1641663945787,6.66617926,138.41,138.32,27.66479]
[1641663945986,1.806,138.41,138.32,27.66479]
[1641663946387,1.806,138.43,138.32,27.66479]
[1641663946787,7.22882857,138.42,138.32,27.66479]
[1641663946989,1.806,138.41,138.34,4.0]
[1641663947288,1.806,138.41,138.34,7.22491149]
[1641663947490,1.806,138.46,138.34,7.22491149]
[1641663947790,1.806,138.46,138.37,27.66479]
[1641663948190,1.806,138.46,138.38,4.0]
[1641663948390,5.77764198,138.47,138.37,27.66479]
[1641663948791,5.77804522,138.46,138.34,4.0]
[1641663949089,1.806,138.45,138.35,4.0]
[1641663949290,5.7780453,138.46,138.35,4.0]
[1641663949492,1.806,138.45,138.35,4.0]
[1641663949690,27.66479,138.42,138.32,27.66479]
[1641663949889,5.78046929,138.4,138.29,15.09496541]
[1641663950089,5.78046929,138.4,138.3,4.0]
[1641663950291,1.807,138.39,138.3,4.0]
[1641663950491,7.58801874,138.39,138.27,7.22882857]
[1641663950691,7.58801874,138.39,138.33,4.0]
[1641663950891,1.806,138.41,138.31,4.0]
[1641663951091,1.806,138.41,138.25,1.408]
[1641663951293,7.23039659,138.39,138.24,8.63839659]
[1641663951492,5.78196713,138.37,138.27,4.0]
[1641663951692,29.47179,138.36,138.25,27.66479]
[1641663951892,29.47179,138.36,138.27,4.0]
[1641663952094,1.807,138.36,138.25,27.66479]
[1641663952294,1.807,138.39,138.29,11.22752241]
[1641663952493,4.86017926,138.41,138.3,4.0]
[1641663952693,4.86017926,138.41,138.39,4.0]
[1641663952895,15.09496541,138.44,138.4,11.22178089]
[1641663953094,15.09496541,138.44,138.43,4.0]
[1641663953495,15.09496541,138.44,138.43,11.22047727]
[1641663953696,27.66479,138.5,138.43,4.0]
[1641663953897,27.66479,138.5,138.42,24.24524358]
[1641663954296,4.0,138.47,138.4,27.66479]
[1641663954496,1.805,138.49,138.4,27.66479]
[1641663954698,7.58193025,138.49,138.4,27.66479]
[1641663955498,4.0,138.48,138.34,22.3198769]
[1641663955701,27.66479,138.45,138.35,27.66479]
[1641663955900,1.806,138.44,138.35,27.66479]